[Event "Early-Titled-Tuesday-Blitz-July-09-2024"]
[Site "Chess.com"]
[Date "2024.07.09"]
[Round "8"]
[White "YaWaleriy"]
[Black "Gyulamiryan-koryun"]
[Result "0-1"]
[WhiteElo "2400"]
[BlackElo "1903"]
[TimeControl "180+1"]
[EndTime "9:29:31 PDT"]
[Termination "Gyulamiryan-koryun won on time"]

1. d4 {[%clk 0:03:00.9]} 1... Nf6 {[%clk 0:02:59.7]} 2. Nf3 {[%clk 0:02:59.7]}
2... g6 {[%clk 0:02:58.7]} 3. c4 {[%clk 0:02:59.4]} 3... c5 {[%clk 0:02:58.6]}
4. d5 {[%clk 0:02:56.7]} 4... b5 {[%clk 0:02:58.6]} 5. cxb5 {[%clk 0:02:56.8]}
5... a6 {[%clk 0:02:58.8]} 6. bxa6 {[%clk 0:02:56.9]} 6... Bxa6 {[%clk
0:02:58.1]} 7. Nc3 {[%clk 0:02:56.9]} 7... Bg7 {[%clk 0:02:57.5]} 8. e4 {[%clk
0:02:56.9]} 8... Bxf1 {[%clk 0:02:56.5]} 9. Kxf1 {[%clk 0:02:57.8]} 9... d6
{[%clk 0:02:54.8]} 10. g3 {[%clk 0:02:58.2]} 10... O-O {[%clk 0:02:54.3]} 11.
Kg2 {[%clk 0:02:58.7]} 11... Nbd7 {[%clk 0:02:54.3]} 12. a4 {[%clk 0:02:58]}
12... Qa5 {[%clk 0:02:49.7]} 13. Ra3 {[%clk 0:02:52.5]} 13... Rfb8 {[%clk
0:02:48.5]} 14. Re1 {[%clk 0:02:48]} 14... Nb6 {[%clk 0:02:36.4]} 15. Qe2 {[%clk
0:02:21]} 15... Ng4 {[%clk 0:02:29.5]} 16. Bd2 {[%clk 0:02:14.9]} 16... Qa6
{[%clk 0:02:23.2]} 17. b3 {[%clk 0:01:48.6]} 17... Ne5 {[%clk 0:02:15.8]} 18.
Nxe5 {[%clk 0:01:46.8]} 18... Bxe5 {[%clk 0:02:16.2]} 19. Nb5 {[%clk 0:01:43.8]}
19... Qb7 {[%clk 0:02:09.6]} 20. f4 {[%clk 0:01:28.3]} 20... Bg7 {[%clk
0:02:08.2]} 21. Rb1 {[%clk 0:01:02.6]} 21... Nd7 {[%clk 0:02:05.5]} 22. Ra2
{[%clk 0:00:53]} 22... Nf6 {[%clk 0:01:51.7]} 23. Rc2 {[%clk 0:00:48]} 23... h5
{[%clk 0:01:46.8]} 24. h3 {[%clk 0:00:46.9]} 24... Rc8 {[%clk 0:01:40.6]} 25.
Rbc1 {[%clk 0:00:34]} 25... Qd7 {[%clk 0:01:29.9]} 26. Qf3 {[%clk 0:00:28.4]}
26... e6 {[%clk 0:01:26.7]} 27. dxe6 {[%clk 0:00:27.6]} 27... Qxe6 {[%clk
0:01:26.1]} 28. Re1 {[%clk 0:00:23.9]} 28... Rab8 {[%clk 0:01:18.2]} 29. e5
{[%clk 0:00:20.6]} 29... dxe5 {[%clk 0:01:15.1]} 30. Rxe5 {[%clk 0:00:19.5]}
30... Qb6 {[%clk 0:01:04.4]} 31. Be3 {[%clk 0:00:18.8]} 31... Nd7 {[%clk
0:01:03.6]} 32. Rd5 {[%clk 0:00:17.4]} 32... Qe6 {[%clk 0:01:00.3]} 33. Rcd2
{[%clk 0:00:14.1]} 33... Nf6 {[%clk 0:00:58.3]} 34. Rd6 {[%clk 0:00:12.5]} 34...
Qxb3 {[%clk 0:00:58.3]} 35. Bf2 {[%clk 0:00:06]} 35... Qxa4 {[%clk 0:00:57.3]}
36. Nc3 {[%clk 0:00:04.6]} 36... Qc4 {[%clk 0:00:53.5]} 37. Nd5 {[%clk
0:00:02.9]} 37... Nxd5 {[%clk 0:00:47.2]} 38. R6xd5 {[%clk 0:00:02.3]} 38... Kh7
{[%clk 0:00:38.5]} 39. f5 {[%clk 0:00:01.4]} 39... Rb3 {[%clk 0:00:37.4]} 0-1

[Event "Early-Titled-Tuesday-Blitz-July-09-2024"]
[Site "Chess.com"]
[Date "2024.07.09"]
[Round "8"]
[White "Resourchess"]
[Black "Knightmare1014"]
[Result "1-0"]
[WhiteElo "2375"]
[BlackElo "2255"]
[TimeControl "180+1"]
[EndTime "9:29:33 PDT"]
[Termination "Resourchess won by resignation"]

1. d4 {[%clk 0:03:00.9]} 1... d5 {[%clk 0:02:59.9]} 2. c4 {[%clk 0:02:59]} 2...
e6 {[%clk 0:03:00.2]} 3. Nc3 {[%clk 0:02:57.8]} 3... Nf6 {[%clk 0:03:00.5]} 4.
cxd5 {[%clk 0:02:56]} 4... exd5 {[%clk 0:03:00.8]} 5. Bg5 {[%clk 0:02:52.1]}
5... c6 {[%clk 0:03:01.4]} 6. Qc2 {[%clk 0:02:51.7]} 6... Be7 {[%clk 0:03:01.5]}
7. e3 {[%clk 0:02:51.4]} 7... Nbd7 {[%clk 0:03:01.6]} 8. Bd3 {[%clk 0:02:49.8]}
8... h6 {[%clk 0:03:01.9]} 9. Bf4 {[%clk 0:02:46.4]} 9... Nh5 {[%clk 0:02:55.7]}
10. Nf3 {[%clk 0:02:18.8]} 10... Nxf4 {[%clk 0:02:54.9]} 11. exf4 {[%clk
0:02:18.7]} 11... O-O {[%clk 0:02:50.1]} 12. O-O {[%clk 0:02:00.1]} 12... Re8
{[%clk 0:02:32.2]} 13. Rae1 {[%clk 0:01:40.3]} 13... Nf8 {[%clk 0:02:30.3]} 14.
Ne5 {[%clk 0:01:39.5]} 14... Be6 {[%clk 0:02:29.2]} 15. f5 {[%clk 0:01:39]}
15... Bd7 {[%clk 0:02:28.1]} 16. Qb3 {[%clk 0:01:33.3]} 16... Bd6 {[%clk
0:02:21.4]} 17. Nxf7 {[%clk 0:01:09.5]} 17... Kxf7 {[%clk 0:02:17.9]} 18. Nxd5
{[%clk 0:01:09.4]} 18... cxd5 {[%clk 0:02:02.4]} 19. Qxd5+ {[%clk 0:01:09.3]}
19... Ne6 {[%clk 0:02:02.1]} 20. Qxd6 {[%clk 0:00:54.4]} 20... Qe7 {[%clk
0:00:34.3]} 21. Qg3 {[%clk 0:00:37]} 21... Qf6 {[%clk 0:00:19.5]} 22. fxe6+
{[%clk 0:00:34.8]} 22... Bxe6 {[%clk 0:00:19.7]} 23. Re3 {[%clk 0:00:26.7]}
23... Kg8 {[%clk 0:00:18.7]} 24. Rfe1 {[%clk 0:00:22.8]} 24... Bf7 {[%clk
0:00:17.6]} 25. Qg4 {[%clk 0:00:18.7]} 25... Red8 {[%clk 0:00:14.8]} 26. Qe4
{[%clk 0:00:12.2]} 26... Rxd4 {[%clk 0:00:10.9]} 27. Qh7+ {[%clk 0:00:11.9]}
27... Kf8 {[%clk 0:00:11.3]} 28. Qh8+ {[%clk 0:00:11.6]} 28... Bg8 {[%clk
0:00:11.7]} 29. Bh7 {[%clk 0:00:09.4]} 29... Qf7 {[%clk 0:00:10.8]} 30. Bxg8
{[%clk 0:00:07.7]} 30... Qxg8 {[%clk 0:00:10.9]} 31. Re8+ {[%clk 0:00:05.3]}
31... Rxe8 {[%clk 0:00:08]} 32. Rxe8+ {[%clk 0:00:05.2]} 32... Kxe8 {[%clk
0:00:08.5]} 33. Qxg8+ {[%clk 0:00:05.8]} 33... Kd7 {[%clk 0:00:07.5]} 34. Qxg7+
{[%clk 0:00:06.1]} 1-0

[Event "Early-Titled-Tuesday-Blitz-July-09-2024"]
[Site "Chess.com"]
[Date "2024.07.09"]
[Round "8"]
[White "osielchesslover2011"]
[Black "kyawmyataung2005"]
[Result "0-1"]
[WhiteElo "2190"]
[BlackElo "2336"]
[TimeControl "180+1"]
[EndTime "9:29:34 PDT"]
[Termination "kyawmyataung2005 won by resignation"]

1. e4 {[%clk 0:03:00.9]} 1... e5 {[%clk 0:02:59.5]} 2. Nf3 {[%clk 0:03:00.6]}
2... Nc6 {[%clk 0:02:59.3]} 3. d4 {[%clk 0:03:00.6]} 3... exd4 {[%clk
0:02:59.4]} 4. Bc4 {[%clk 0:03:00.4]} 4... Nf6 {[%clk 0:02:59]} 5. O-O {[%clk
0:02:59.2]} 5... Nxe4 {[%clk 0:02:46.2]} 6. Nc3 {[%clk 0:02:58.5]} 6... Nxc3
{[%clk 0:02:43.5]} 7. bxc3 {[%clk 0:02:58.1]} 7... d5 {[%clk 0:02:43.3]} 8. Bb5
{[%clk 0:02:57.6]} 8... Be7 {[%clk 0:02:43.1]} 9. cxd4 {[%clk 0:02:56.2]} 9...
O-O {[%clk 0:02:41.9]} 10. Bf4 {[%clk 0:02:56.5]} 10... Na5 {[%clk 0:02:36.1]}
11. Qd2 {[%clk 0:02:50.8]} 11... c6 {[%clk 0:02:32.3]} 12. Bd3 {[%clk
0:02:46.6]} 12... Nc4 {[%clk 0:02:30.6]} 13. Bxc4 {[%clk 0:02:38.5]} 13... dxc4
{[%clk 0:02:31.5]} 14. Ne5 {[%clk 0:02:38.5]} 14... Be6 {[%clk 0:02:31.1]} 15.
c3 {[%clk 0:02:30.5]} 15... c5 {[%clk 0:02:28.2]} 16. Rad1 {[%clk 0:02:22.3]}
16... cxd4 {[%clk 0:02:26.8]} 17. cxd4 {[%clk 0:02:22.6]} 17... Qd5 {[%clk
0:02:25.6]} 18. Rfe1 {[%clk 0:02:15.8]} 18... Rac8 {[%clk 0:02:25.1]} 19. Qc3
{[%clk 0:02:08.5]} 19... b5 {[%clk 0:02:18.2]} 20. Qg3 {[%clk 0:02:01.3]} 20...
Bf6 {[%clk 0:02:09.8]} 21. h4 {[%clk 0:01:29.4]} 21... Kh8 {[%clk 0:01:37.7]}
22. h5 {[%clk 0:01:23.9]} 22... h6 {[%clk 0:01:37.5]} 23. Qe3 {[%clk 0:01:06.3]}
23... Kh7 {[%clk 0:01:18.8]} 24. g4 {[%clk 0:00:52.5]} 24... c3 {[%clk 0:01:11]}
25. g5 {[%clk 0:00:28.4]} 25... hxg5 {[%clk 0:01:09.9]} 26. Bxg5 {[%clk
0:00:28.9]} 26... Bxg5 {[%clk 0:00:58.7]} 27. Qxg5 {[%clk 0:00:25.2]} 27... c2
{[%clk 0:00:54.3]} 28. Rd3 {[%clk 0:00:18.9]} 28... Qd8 {[%clk 0:00:38.3]} 29.
Qf4 {[%clk 0:00:10.9]} 29... Qf6 {[%clk 0:00:37]} 30. Qe3 {[%clk 0:00:05.7]}
30... Bf5 {[%clk 0:00:23.6]} 31. Rc3 {[%clk 0:00:03.4]} 31... Rxc3 {[%clk
0:00:23.3]} 32. Qxc3 {[%clk 0:00:04]} 32... Qg5+ {[%clk 0:00:18.5]} 33. Kf1
{[%clk 0:00:03.5]} 33... Rc8 {[%clk 0:00:18.3]} 34. Qb2 {[%clk 0:00:03]} 34...
c1=Q {[%clk 0:00:18.2]} 0-1

[Event "Early-Titled-Tuesday-Blitz-July-09-2024"]
[Site "Chess.com"]
[Date "2024.07.09"]
[Round "8"]
[White "Karttunen"]
[Black "ThanhNghia"]
[Result "1-0"]
[WhiteElo "2672"]
[BlackElo "2499"]
[TimeControl "180+1"]
[EndTime "9:29:36 PDT"]
[Termination "Karttunen won on time"]

1. e4 {[%clk 0:03:00.9]} 1... e5 {[%clk 0:02:59.5]} 2. Nf3 {[%clk 0:03:00.6]}
2... Nc6 {[%clk 0:02:59.1]} 3. Bc4 {[%clk 0:03:00.6]} 3... Be7 {[%clk
0:02:57.8]} 4. c3 {[%clk 0:02:57.3]} 4... Nf6 {[%clk 0:02:56.8]} 5. d3 {[%clk
0:02:56.8]} 5... O-O {[%clk 0:02:55.2]} 6. a4 {[%clk 0:02:56.5]} 6... d5 {[%clk
0:02:52.4]} 7. exd5 {[%clk 0:02:56.5]} 7... Nxd5 {[%clk 0:02:52.5]} 8. a5 {[%clk
0:02:55.8]} 8... a6 {[%clk 0:02:35.2]} 9. O-O {[%clk 0:02:54.5]} 9... b5 {[%clk
0:02:21.5]} 10. Bb3 {[%clk 0:02:34.5]} 10... Bf5 {[%clk 0:02:20.2]} 11. Re1
{[%clk 0:02:31.5]} 11... Nf4 {[%clk 0:02:16.2]} 12. Bxf4 {[%clk 0:02:27]} 12...
exf4 {[%clk 0:02:14.8]} 13. d4 {[%clk 0:02:26.6]} 13... Bd6 {[%clk 0:01:58.5]}
14. Nbd2 {[%clk 0:02:13.7]} 14... Re8 {[%clk 0:01:52.1]} 15. Rxe8+ {[%clk
0:02:05.4]} 15... Qxe8 {[%clk 0:01:52]} 16. Ng5 {[%clk 0:02:04.2]} 16... Bg6
{[%clk 0:01:46.2]} 17. Qf3 {[%clk 0:01:56.5]} 17... h6 {[%clk 0:01:40.2]} 18.
Bd5 {[%clk 0:01:51.2]} 18... hxg5 {[%clk 0:01:26.6]} 19. Bxc6 {[%clk 0:01:50.9]}
19... g4 {[%clk 0:01:26.7]} 20. Qd5 {[%clk 0:01:49.4]} 20... Qe2 {[%clk
0:01:24.6]} 21. Bxa8 {[%clk 0:01:41.3]} 21... Qxd2 {[%clk 0:01:24.5]} 22. Qb3
{[%clk 0:01:09.8]} 22... f3 {[%clk 0:01:19.1]} 23. g3 {[%clk 0:00:42.6]} 23...
Bc2 {[%clk 0:01:05.6]} 24. Qd5 {[%clk 0:00:42.3]} 24... Qh6 {[%clk 0:01:04.1]}
25. h4 {[%clk 0:00:37.4]} 25... gxh3 {[%clk 0:01:02.1]} 26. Qxf3 {[%clk
0:00:35.2]} 26... Qd2 {[%clk 0:00:56.5]} 27. Bb7 {[%clk 0:00:30.2]} 27... Bg6
{[%clk 0:00:47.9]} 28. b4 {[%clk 0:00:28.6]} 28... Bd3 {[%clk 0:00:29.1]} 29.
Rd1 {[%clk 0:00:21.9]} 29... Qxc3 {[%clk 0:00:13.2]} 30. Qxd3 {[%clk 0:00:22.1]}
30... Qxb4 {[%clk 0:00:12.6]} 31. Bxa6 {[%clk 0:00:22]} 31... Qxa5 {[%clk
0:00:12.6]} 32. Bxb5 {[%clk 0:00:20.6]} 32... Qa8 {[%clk 0:00:12.3]} 33. d5
{[%clk 0:00:20.9]} 33... Qc8 {[%clk 0:00:10.9]} 34. Qf3 {[%clk 0:00:20.8]} 34...
Qb7 {[%clk 0:00:09.9]} 35. Bd3 {[%clk 0:00:20.7]} 35... g6 {[%clk 0:00:09]} 36.
Kh2 {[%clk 0:00:20.8]} 36... Qb3 {[%clk 0:00:06.2]} 37. Kxh3 {[%clk 0:00:20.5]}
37... Qa4 {[%clk 0:00:05]} 38. Kg2 {[%clk 0:00:20.5]} 38... Bc5 {[%clk
0:00:01.4]} 39. Re1 {[%clk 0:00:20.7]} 1-0

[Event "Early-Titled-Tuesday-Blitz-July-09-2024"]
[Site "Chess.com"]
[Date "2024.07.09"]
[Round "8"]
[White "ACollins05"]
[Black "prosequi"]
[Result "1-0"]
[WhiteElo "2496"]
[BlackElo "2344"]
[TimeControl "180+1"]
[EndTime "9:29:39 PDT"]
[Termination "ACollins05 won by resignation"]

1. d4 {[%clk 0:02:52.4]} 1... Nf6 {[%clk 0:02:59.2]} 2. c4 {[%clk 0:02:52.1]}
2... d6 {[%clk 0:02:59.5]} 3. Nf3 {[%clk 0:02:51.2]} 3... Nbd7 {[%clk
0:02:59.5]} 4. g3 {[%clk 0:02:48.2]} 4... e5 {[%clk 0:02:59.1]} 5. Bg2 {[%clk
0:02:48.8]} 5... g6 {[%clk 0:02:57.3]} 6. O-O {[%clk 0:02:48.6]} 6... Bg7 {[%clk
0:02:57.7]} 7. Nc3 {[%clk 0:02:49.1]} 7... O-O {[%clk 0:02:57.5]} 8. Bg5 {[%clk
0:02:48]} 8... h6 {[%clk 0:02:52.9]} 9. Bxf6 {[%clk 0:02:45.9]} 9... Bxf6 {[%clk
0:02:50.6]} 10. dxe5 {[%clk 0:02:44.1]} 10... dxe5 {[%clk 0:02:47.6]} 11. Qd2
{[%clk 0:02:38.9]} 11... Bg7 {[%clk 0:02:46]} 12. Rfd1 {[%clk 0:02:37.9]} 12...
c6 {[%clk 0:02:40.3]} 13. Qd6 {[%clk 0:02:36.1]} 13... Re8 {[%clk 0:02:35.4]}
14. Bh3 {[%clk 0:02:34.6]} 14... Bf8 {[%clk 0:02:17.8]} 15. Qd2 {[%clk
0:02:28.3]} 15... f5 {[%clk 0:02:14]} 16. e4 {[%clk 0:02:28]} 16... Qf6 {[%clk
0:02:11]} 17. Nh4 {[%clk 0:02:20.3]} 17... Nc5 {[%clk 0:02:08.8]} 18. exf5
{[%clk 0:02:15.6]} 18... gxf5 {[%clk 0:02:09.7]} 19. Qc2 {[%clk 0:02:10.4]}
19... f4 {[%clk 0:02:00.8]} 20. Bxc8 {[%clk 0:02:08.8]} 20... Raxc8 {[%clk
0:02:00.2]} 21. Qg6+ {[%clk 0:02:00.7]} 21... Qxg6 {[%clk 0:02:00.2]} 22. Nxg6
{[%clk 0:02:01.6]} 22... fxg3 {[%clk 0:01:44.5]} 23. hxg3 {[%clk 0:01:59.8]}
23... e4 {[%clk 0:01:38.4]} 24. Nf4 {[%clk 0:01:57]} 24... Bg7 {[%clk
0:01:33.4]} 25. Rac1 {[%clk 0:01:52.9]} 25... a5 {[%clk 0:01:28.8]} 26. Nh5
{[%clk 0:01:52.1]} 26... Be5 {[%clk 0:01:15.5]} 27. Re1 {[%clk 0:01:46.9]} 27...
Nd3 {[%clk 0:01:15.7]} 28. Nxe4 {[%clk 0:01:43]} 28... Nxe1 {[%clk 0:00:59.6]}
29. Rxe1 {[%clk 0:01:39.7]} 29... Kf7 {[%clk 0:00:56.7]} 30. f4 {[%clk
0:01:35.1]} 30... Bc7 {[%clk 0:00:56.5]} 31. Kf2 {[%clk 0:01:31.9]} 31... Rcd8
{[%clk 0:00:56.9]} 32. Nhf6 {[%clk 0:01:28]} 32... Re6 {[%clk 0:00:55.3]} 33.
Ng4 {[%clk 0:01:27.8]} 33... Rde8 {[%clk 0:00:53.4]} 34. Kf3 {[%clk 0:01:27.8]}
34... b5 {[%clk 0:00:44.7]} 35. f5 {[%clk 0:01:25.2]} 35... Rxe4 {[%clk
0:00:38.4]} 36. Rxe4 {[%clk 0:01:22.9]} 36... Rxe4 {[%clk 0:00:39.3]} 37. Kxe4
{[%clk 0:01:23.7]} 37... Bxg3 {[%clk 0:00:40.1]} 38. Nxh6+ {[%clk 0:01:23.3]}
38... Kf6 {[%clk 0:00:40.1]} 39. Ng4+ {[%clk 0:01:23.2]} 39... Kg5 {[%clk
0:00:39.9]} 40. Ne5 {[%clk 0:01:21.5]} 40... bxc4 {[%clk 0:00:35.3]} 41. Nxc4
{[%clk 0:01:21.3]} 41... Be1 {[%clk 0:00:34.3]} 42. Ne5 {[%clk 0:01:19.1]} 42...
c5 {[%clk 0:00:33.5]} 43. Nd3 {[%clk 0:01:16.1]} 43... Bg3 {[%clk 0:00:30.8]}
44. Nxc5 {[%clk 0:01:16.2]} 44... Kf6 {[%clk 0:00:31.4]} 45. a4 {[%clk
0:01:11.5]} 45... Bc7 {[%clk 0:00:31.4]} 46. Ne6 {[%clk 0:01:08]} 46... Bd6
{[%clk 0:00:31.3]} 47. Nd4 {[%clk 0:01:08]} 47... Bc7 {[%clk 0:00:30.1]} 48. Kd5
{[%clk 0:01:08.3]} 48... Bb6 {[%clk 0:00:29.6]} 49. b3 {[%clk 0:01:03.4]} 49...
Ba7 {[%clk 0:00:28.8]} 50. Nc6 {[%clk 0:01:01.2]} 50... Bb6 {[%clk 0:00:29.1]}
51. Kc4 {[%clk 0:01:01.2]} 51... Kxf5 {[%clk 0:00:27.3]} 52. Kb5 {[%clk
0:01:01.4]} 52... Bf2 {[%clk 0:00:27.2]} 53. Nxa5 {[%clk 0:00:58.6]} 53... Ke6
{[%clk 0:00:27.1]} 54. Kc6 {[%clk 0:00:58.3]} 54... Be1 {[%clk 0:00:23.6]} 55.
Nb7 {[%clk 0:00:57.6]} 55... Ke7 {[%clk 0:00:23.8]} 56. a5 {[%clk 0:00:57.4]}
56... Bf2 {[%clk 0:00:23.3]} 57. b4 {[%clk 0:00:56.9]} 57... Ke6 {[%clk
0:00:21]} 58. b5 {[%clk 0:00:57.1]} 58... Be1 {[%clk 0:00:19.8]} 59. a6 {[%clk
0:00:56.4]} 59... Bf2 {[%clk 0:00:20.5]} 60. b6 {[%clk 0:00:56.5]} 1-0

[Event "Early-Titled-Tuesday-Blitz-July-09-2024"]
[Site "Chess.com"]
[Date "2024.07.09"]
[Round "8"]
[White "Zohid6"]
[Black "DenLaz"]
[Result "0-1"]
[WhiteElo "2984"]
[BlackElo "3149"]
[TimeControl "180+1"]
[EndTime "9:29:40 PDT"]
[Termination "DenLaz won by resignation"]

1. e4 {[%clk 0:03:00.9]} 1... c5 {[%clk 0:03:00]} 2. Nf3 {[%clk 0:03:00]} 2...
e6 {[%clk 0:03:00.7]} 3. Nc3 {[%clk 0:02:54.7]} 3... Nc6 {[%clk 0:03:00.2]} 4.
d4 {[%clk 0:02:54.8]} 4... cxd4 {[%clk 0:03:00.7]} 5. Nxd4 {[%clk 0:02:55.7]}
5... Qc7 {[%clk 0:03:00.8]} 6. Be3 {[%clk 0:02:52.3]} 6... a6 {[%clk 0:03:00.4]}
7. Qf3 {[%clk 0:02:52.4]} 7... Ne5 {[%clk 0:03:00.6]} 8. Qg3 {[%clk 0:02:52.2]}
8... h5 {[%clk 0:03:01.3]} 9. h4 {[%clk 0:02:45.7]} 9... d6 {[%clk 0:02:56.4]}
10. O-O-O {[%clk 0:02:43.4]} 10... b5 {[%clk 0:02:56.9]} 11. Bxb5+ {[%clk
0:02:41.8]} 11... axb5 {[%clk 0:02:56.2]} 12. Ndxb5 {[%clk 0:02:42.1]} 12... Qb8
{[%clk 0:02:52.6]} 13. Nxd6+ {[%clk 0:02:27.8]} 13... Bxd6 {[%clk 0:02:50]} 14.
Rxd6 {[%clk 0:02:28.7]} 14... Qxd6 {[%clk 0:02:47.7]} 15. Qxg7 {[%clk
0:02:27.7]} 15... Ng6 {[%clk 0:02:44]} 16. Rd1 {[%clk 0:02:27.6]} 16... Qe5
{[%clk 0:02:29.7]} 17. Qxe5 {[%clk 0:02:25.2]} 17... Nxe5 {[%clk 0:02:29.6]} 18.
Nb5 {[%clk 0:02:25.6]} 18... Rxa2 {[%clk 0:01:59.8]} 19. Nc7+ {[%clk 0:02:24.9]}
19... Ke7 {[%clk 0:01:48.2]} 20. Bc5+ {[%clk 0:02:24.5]} 20... Kf6 {[%clk
0:01:48.6]} 21. Rd8 {[%clk 0:02:24.6]} 21... Bb7 {[%clk 0:00:55.9]} 22. f3
{[%clk 0:02:10]} 22... Nc6 {[%clk 0:00:33.2]} 23. Rd7 {[%clk 0:02:04.7]} 23...
Nge7 {[%clk 0:00:29.9]} 24. b4 {[%clk 0:02:03.7]} 24... Bc8 {[%clk 0:00:26.6]}
25. Rd3 {[%clk 0:01:53]} 25... Rd8 {[%clk 0:00:25]} 26. Bd6 {[%clk 0:01:50.4]}
26... Rxd6 {[%clk 0:00:23.3]} 27. Rxd6 {[%clk 0:01:51.3]} 27... Nxb4 {[%clk
0:00:24]} 28. Rd2 {[%clk 0:01:47.4]} 28... Nec6 {[%clk 0:00:23.3]} 29. Ne8+
{[%clk 0:01:43.6]} 29... Ke7 {[%clk 0:00:22.9]} 30. Nd6 {[%clk 0:01:44.5]} 30...
Bd7 {[%clk 0:00:23.2]} 31. Nc4 {[%clk 0:01:43.2]} 31... e5 {[%clk 0:00:21.9]}
32. Ne3 {[%clk 0:01:42.8]} 32... Be6 {[%clk 0:00:21.7]} 33. g4 {[%clk 0:01:43]}
33... Nd4 {[%clk 0:00:20.5]} 34. gxh5 {[%clk 0:01:42.5]} 34... Nxf3 {[%clk
0:00:19.8]} 35. Rg2 {[%clk 0:01:37.1]} 35... Nxh4 {[%clk 0:00:18]} 36. Rg8
{[%clk 0:01:35.5]} 36... Ra1+ {[%clk 0:00:15.4]} 37. Kb2 {[%clk 0:01:33.5]}
37... Rh1 {[%clk 0:00:16]} 38. Kc3 {[%clk 0:01:25.5]} 38... Nc6 {[%clk
0:00:16.2]} 39. Rg7 {[%clk 0:01:20.9]} 39... Nf3 {[%clk 0:00:15.1]} 40. Nd5+
{[%clk 0:01:16.1]} 40... Bxd5 {[%clk 0:00:15.2]} 41. exd5 {[%clk 0:01:17]} 41...
Ncd4 {[%clk 0:00:15.9]} 42. d6+ {[%clk 0:01:17.3]} 42... Kxd6 {[%clk 0:00:16.1]}
43. Rxf7 {[%clk 0:01:17.8]} 43... Rxh5 {[%clk 0:00:16.8]} 44. Kd3 {[%clk
0:01:18.4]} 44... Rh3 {[%clk 0:00:15.1]} 45. Ra7 {[%clk 0:01:15.3]} 45... Ng5+
{[%clk 0:00:14.3]} 46. Kc4 {[%clk 0:01:15.1]} 46... Nxc2 {[%clk 0:00:13.7]} 47.
Ra6+ {[%clk 0:01:15.5]} 47... Ke7 {[%clk 0:00:14.3]} 48. Ra2 {[%clk 0:01:12.3]}
48... Ne3+ {[%clk 0:00:13.5]} 49. Kc5 {[%clk 0:01:12.8]} 49... Ne6+ {[%clk
0:00:13.9]} 50. Kc6 {[%clk 0:01:12.7]} 50... Nf5 {[%clk 0:00:14.2]} 51. Kd5
{[%clk 0:01:11.3]} 51... Kf6 {[%clk 0:00:14.7]} 52. Ra6 {[%clk 0:01:11.2]} 52...
Rd3+ {[%clk 0:00:14.5]} 53. Ke4 {[%clk 0:01:11.2]} 53... Rd4+ {[%clk 0:00:15.1]}
54. Kf3 {[%clk 0:01:11.8]} 54... e4+ {[%clk 0:00:15.8]} 55. Ke2 {[%clk
0:01:11.9]} 55... e3 {[%clk 0:00:16.5]} 56. Kf3 {[%clk 0:01:11.5]} 56... Ke5
{[%clk 0:00:15.8]} 57. Ra5+ {[%clk 0:01:11.5]} 57... Rd5 {[%clk 0:00:16.4]} 58.
Ra2 {[%clk 0:01:10.4]} 58... Ned4+ {[%clk 0:00:17]} 59. Kg2 {[%clk 0:01:09.3]}
59... Ke4 {[%clk 0:00:17.6]} 60. Ra3 {[%clk 0:01:08.9]} 60... e2 {[%clk
0:00:17.8]} 61. Kf2 {[%clk 0:01:09.4]} 61... Rc5 {[%clk 0:00:17.6]} 62. Ra1
{[%clk 0:01:08.3]} 62... Ne3 {[%clk 0:00:17]} 63. Rh1 {[%clk 0:01:07.4]} 63...
Rf5+ {[%clk 0:00:17.4]} 64. Ke1 {[%clk 0:01:04.8]} 64... Rf1+ {[%clk 0:00:18]}
65. Kd2 {[%clk 0:01:05.1]} 65... Nc4+ {[%clk 0:00:17.4]} 66. Kc3 {[%clk
0:01:04.6]} 66... Rxh1 {[%clk 0:00:17.6]} 0-1